bitfinex-derivatives/quotes_SOLF0:USTF0_20250606
["timestamp","ask_amount","ask_price","bid_price","bid_amount"]
[1749234072901,6.6643,149.95,149.91,8.9735]
[1749234073101,40.55252159,149.94,149.91,8.9735]
[1749234073903,4.59255009,149.93,149.91,9.02130262]
[1749234074101,40.59685539,149.94,149.91,9.02130262]
[1749234074306,4.57334234,149.93,149.91,9.02130262]
[1749234074612,4.57334526,149.93,149.91,9.02130262]
[1749234075106,40.59685539,149.94,149.91,12.35580262]
[1749234075404,33.3643338,149.94,149.92,7.23252159]
[1749234075605,33.3643338,149.94,149.93,6.6649]
[1749234075806,29.8779338,149.94,149.93,6.6649]
[1749234076196,29.8779338,149.94,149.91,12.35580262]
[1749234076800,29.8779338,149.94,149.93,6.6649]
[1749234077304,29.8779338,149.94,149.91,12.35580262]
[1749234077509,29.8779338,149.94,149.92,6.665]
[1749234077709,29.8779338,149.94,149.91,12.35580262]
[1749234078310,29.8779338,149.94,149.92,6.6649]
[1749234078512,29.8779338,149.94,149.91,12.35580262]
[1749234079513,29.8779338,149.94,149.93,6.6649]
[1749234081209,29.8779338,149.94,149.91,12.35580262]
[1749234081409,37.11045539,149.94,149.91,10.04780262]
[1749234081616,13.89782159,149.92,149.91,10.04780262]
[1749234081814,18.45896106,149.92,149.91,10.04780262]
[1749234082010,13.89782159,149.92,149.91,10.04780262]
[1749234082218,18.45896106,149.92,149.91,10.04780262]
[1749234082624,18.45892061,149.92,149.91,10.04780262]
[1749234083422,13.89782159,149.92,149.91,10.04780262]
[1749234083620,6.6651,149.93,149.91,10.04780262]
[1749234083922,11.7959948,149.92,149.91,10.04780262]
[1749234084226,29.8779338,149.94,149.91,10.04780262]
[1749234084227,4.56347321,149.93,149.91,10.04780262]
[1749234084623,4.55842505,149.93,149.91,16.71340262]
[1749234085119,4.55842505,149.93,149.92,6.6653]
[1749234085320,4.56193295,149.93,149.91,10.04780262]
[1749234086322,4.56332212,149.93,149.91,10.04780262]
[1749234086623,43.77495539,149.94,149.91,10.04780262]
[1749234086825,4.56332211,149.93,149.91,10.04780262]
[1749234087220,43.77495539,149.94,149.91,10.04780262]
[1749234087427,4.54016507,149.93,149.91,10.04780262]
[1749234088025,11.18685396,149.93,149.91,10.04780262]
[1749234088327,6.6649,149.93,149.91,10.04780262]
[1749234088527,11.18685394,149.93,149.91,10.04780262]
[1749234089923,6.6653,149.92,149.91,10.04780262]
[1749234090522,11.18643003,149.93,149.91,10.04780262]
[1749234090727,4.52143003,149.93,149.91,10.04780262]
[1749234091126,37.11045539,149.94,149.91,10.04780262]
[1749234091326,6.6653,149.92,149.91,10.04780262]
[1749234092128,4.5223624,149.93,149.91,10.04780262]
[1749234092529,37.11045539,149.94,149.91,10.04780262]
[1749234092725,4.53249806,149.93,149.91,10.04780262]
[1749234093233,4.53248914,149.93,149.91,10.04780262]
[1749234093927,6.6653,149.92,149.91,10.04780262]
[1749234094133,13.89782159,149.92,149.91,10.04780262]
[1749234095036,18.43031073,149.92,149.91,10.04780262]
[1749234096129,13.89782159,149.92,149.91,10.04780262]
[1749234098034,18.42109022,149.92,149.91,10.04780262]
[1749234098229,13.89782159,149.92,149.91,10.04780262]
[1749234100432,18.42069209,149.92,149.91,10.04780262]
[1749234100732,6.6676,149.87,149.84,2.145]
[1749234100943,6.6676,149.87,149.83,5.6385]
[1749234100944,40.55252159,149.87,149.83,5.6385]
[1749234101329,6.6683,149.86,149.83,5.6385]
[1749234101734,6.71763478,149.86,149.83,5.6874652]
[1749234101941,0.04933478,149.86,149.83,3.3860652]
[1749234102243,4.56865794,149.86,149.83,3.3860652]
[1749234102438,6.6688,149.85,149.83,3.3860652]
[1749234102640,0.04933478,149.86,149.83,3.3860652]
[1749234102839,0.04933478,149.86,149.83,13.3860652]
[1749234103343,6.71763478,149.86,149.83,13.3860652]
[1749234103744,0.04933478,149.86,149.83,20.0552652]
[1749234104044,4.55408717,149.86,149.83,20.0552652]
[1749234104244,0.04933478,149.86,149.83,20.0552652]
[1749234105252,7.23252159,149.85,149.83,13.3860652]
[1749234105841,6.6689,149.84,149.83,13.3860652]
[1749234107748,6.6689,149.84,149.83,3.2858652]
[1749234107942,6.6708,149.8,149.75,4.4049]
[1749234108138,33.34,149.8,149.75,4.4049]
[1749234108339,33.34,149.8,149.76,7.23252159]
[1749234108742,33.34,149.8,149.77,0.04855132]
[1749234108944,0.04886629,149.79,149.78,6.6711]
[1749234109654,0.04886629,149.79,149.77,6.72045132]
[1749234109850,0.04886629,149.79,149.78,10.0]
[1749234110154,13.95268788,149.79,149.78,10.0]
[1749234110454,18.41733556,149.79,149.78,10.0]
[1749234111056,6.6715,149.78,149.77,0.04855132]
[1749234111250,133.44343343,149.78,149.69,2.2267]
[1749234111451,7.23252159,149.74,149.69,2.2267]
[1749234111644,33.34,149.73,149.69,2.2267]
[1749234111850,33.34,149.73,149.7,6.6749]
[1749234112248,33.38528162,149.73,149.7,0.04766773]
[1749234112751,40.05928162,149.73,149.7,10.04766773]
[1749234113055,33.38528162,149.73,149.7,10.04766773]
[1749234113253,6.6745,149.72,149.7,10.04766773]
[1749234113446,7.23252159,149.72,149.7,10.04766773]
[1749234113850,6.6747,149.71,149.7,10.04766773]
[1749234115350,13.90692159,149.72,149.7,10.04766773]
[1749234116661,6.6747,149.71,149.7,10.04766773]
[1749234117260,6.6743,149.72,149.7,10.04766773]
[1749234117561,7.23252159,149.72,149.7,10.04766773]
[1749234118358,6.6747,149.71,149.7,10.04766773]
[1749234119564,33.38528162,149.73,149.7,10.04766773]
[1749234120260,7.23252159,149.72,149.7,10.04766773]
[1749234120463,33.38528162,149.73,149.7,10.04766773]
[1749234120766,7.23252159,149.72,149.7,10.04766773]
[1749234121261,33.38528162,149.73,149.7,10.04766773]
[1749234121854,0.04528162,149.73,149.7,10.04766773]
[1749234122050,33.40528162,149.73,149.7,10.04766773]
[1749234122249,33.40528162,149.73,149.71,2.1631]
[1749234122660,33.40528162,149.73,149.72,6.6742]
[1749234123063,29.91578162,149.73,149.72,6.6742]
[1749234123266,33.36,149.75,149.71,9.39562159]
[1749234123561,140.40476334,149.79,149.73,7.23252159]
[1749234123562,33.36,149.76,149.73,7.23252159]
[1749234123756,33.36,149.76,149.74,6.6729]
[1749234124265,33.40212996,149.76,149.74,6.7219389]
[1749234124868,33.40212996,149.76,149.74,16.7219389]
[1749234125067,33.40212996,149.76,149.75,6.6729]
[1749234125659,33.40212996,149.76,149.74,16.7221389]
[1749234126464,33.40212996,149.76,149.74,10.0490389]
[1749234126857,7.23252159,149.75,149.74,10.0490389]
[1749234127060,13.90542159,149.75,149.74,10.0490389]
[1749234131860,33.40212996,149.76,149.74,10.0490389]
[1749234133868,40.07472996,149.76,149.74,10.0490389]
[1749234134063,7.23252159,149.75,149.74,10.0490389]
[1749234134469,13.90542159,149.75,149.74,10.0490389]
[1749234135059,13.90542159,149.75,149.67,6.5169]
[1749234135265,33.40212996,149.76,149.67,6.5169]
[1749234135266,7.23252159,149.72,149.67,2.2842]
[1749234135566,15.5908,149.78,149.67,2.2842]
[1749234135567,7.23252159,149.7,149.67,2.2842]
[1749234135767,33.56,149.69,149.67,2.2842]
[1749234136371,33.60693421,149.69,149.67,0.04751361]
[1749234136962,6.676,149.68,149.67,0.04751361]
[1749234137162,13.90852159,149.68,149.67,0.04751361]
[1749234137363,13.90852159,149.68,149.67,10.04751361]
[1749234137570,33.60693421,149.69,149.67,10.04751361]
[1749234138167,0.04693421,149.69,149.67,10.04751361]
[1749234138375,33.60693421,149.69,149.67,10.04751361]
[1749234138675,47.5153558,149.69,149.67,10.04751361]
[1749234139065,40.8394558,149.69,149.67,10.04751361]
[1749234139769,47.5152558,149.69,149.67,10.04751361]
[1749234140168,6.676,149.68,149.67,10.04751361]
[1749234140368,33.60693421,149.69,149.67,10.04751361]
[1749234141479,40.28253421,149.69,149.67,10.04751361]
[1749234141772,33.60693421,149.69,149.67,10.04751361]
[1749234143374,6.676,149.68,149.67,10.04751361]
[1749234145165,13.90852159,149.68,149.67,10.04751361]
[1749234147874,40.28253421,149.69,149.67,10.04751361]
[1749234148079,33.60693421,149.69,149.67,10.04751361]
[1749234149276,33.60693421,149.69,149.68,6.676]
[1749234150288,33.60693421,149.69,149.68,13.90852159]
[1749234150580,33.56,149.72,149.7,6.675]
[1749234151378,33.56,149.72,149.71,6.6747]
[1749234151584,33.60614153,149.72,149.71,6.6747]
[1749234151879,33.60614153,149.72,149.7,6.72195961]
[1749234152177,33.60614153,149.72,149.71,10.0]
[1749234153083,33.60614153,149.72,149.71,16.6747]
[1749234154080,0.04614153,149.72,149.71,16.6747]
[1749234154786,0.04614153,149.72,149.71,10.0]
[1749234155684,0.04614153,149.72,149.71,16.6747]
[1749234156183,33.56,149.75,149.71,10.0]
[1749234156490,33.56,149.75,149.72,7.23252159]
[1749234157077,0.04685506,149.75,149.74,6.6733]
[1749234157286,0.04685506,149.75,149.74,13.90582159]
[1749234159287,33.56,149.78,149.77,6.672]
[1749234159486,33.56,149.78,149.74,13.97642159]
[1749234160184,0.04452953,149.77,149.75,0.04760127]
[1749234160486,0.04452953,149.77,149.76,7.23252159]
[1749234160787,0.04452953,149.77,149.76,13.90492159]
[1749234162689,33.6,149.81,149.79,6.6709]
[1749234162991,33.6,149.81,149.76,7.23252159]
[1749234163493,33.6,149.81,149.79,6.6711]
[1749234163695,33.6,149.81,149.79,6.71772179]
[1749234163696,33.64619991,149.81,149.79,6.71772179]
[1749234164002,33.64619991,149.81,149.8,6.6706]
[1749234164200,0.04619991,149.81,149.8,13.90312159]
[1749234164388,33.6,149.84,149.8,7.23252159]
[1749234164589,33.6,149.84,149.82,6.6695]
[1749234165196,33.6,149.84,149.83,6.6693]
[1749234165698,33.6,149.84,149.82,13.94589466]
[1749234167189,33.6,149.84,149.82,23.94589466]
[1749234168193,6.71274807,149.85,149.82,17.27639466]
[1749234168194,0.04414807,149.85,149.82,17.27639466]
[1749234168401,0.04414807,149.85,149.84,7.23252159]
[1749234168896,0.04414807,149.85,149.84,13.90142159]
[1749234169890,33.6,149.87,149.86,6.668]
[1749234172288,0.04694445,149.88,149.86,6.668]
[1749234172692,0.04694445,149.88,149.87,6.6675]
[1749234172999,0.04694445,149.88,149.85,0.04675985]
[1749234173299,0.04694445,149.88,149.86,6.6677]
[1749234174795,0.04694445,149.88,149.85,0.04675985]
[1749234175997,0.04694445,149.88,149.86,6.6678]
[1749234180809,0.04694445,149.88,149.85,0.04675985]
[1749234181403,0.04694445,149.88,149.86,6.6679]
[1749234182007,0.04694445,149.88,149.87,6.6675]
[1749234183113,0.04694445,149.88,149.86,23.90042159]
[1749234183314,0.04694445,149.88,149.86,10.0]
[1749234184710,6.6675,149.87,149.86,10.0]
[1749234185816,13.90002159,149.87,149.86,10.0]
[1749234187120,7.23252159,149.87,149.82,6.6695]
[1749234187418,7.23252159,149.85,149.79,7.23252159]
[1749234187618,13.90102159,149.85,149.79,7.23252159]
[1749234188117,0.05059933,149.83,149.82,6.6695]
[1749234189018,0.05059933,149.83,149.82,16.6695]
[1749234190118,0.05059933,149.83,149.82,10.0]
[1749234190620,13.95242092,149.83,149.82,3.39470881]
[1749234191325,7.28312092,149.83,149.82,3.39470881]
[1749234194521,0.05059933,149.83,149.82,10.06450881]
[1749234197830,0.05059933,149.83,149.82,3.39470881]
[1749234198334,0.05059933,149.83,149.82,10.06450881]
[1749234202025,0.05059933,149.83,149.82,12.33340881]
[1749234208836,0.05059933,149.83,149.82,10.06450881]
[1749234209340,0.05059933,149.83,149.82,3.39470881]
[1749234209741,4.52973173,149.83,149.82,3.39470881]
[1749234209942,0.05059933,149.83,149.82,3.39470881]
[1749234210140,4.52835274,149.83,149.82,10.06450881]
[1749234210335,0.05059933,149.83,149.82,10.06450881]
[1749234211041,4.52865019,149.83,149.82,10.06450881]
[1749234211243,0.05059933,149.83,149.82,3.39470881]
[1749234211438,4.52865019,149.83,149.82,3.39470881]
[1749234212038,11.19775854,149.83,149.82,3.39470881]
[1749234212247,11.19810323,149.83,149.82,3.39470881]
[1749234212445,11.18197651,149.83,149.82,3.39470881]
[1749234212645,11.1819632,149.83,149.82,3.39470881]
[1749234212835,4.5126632,149.83,149.82,3.39470881]
[1749234213036,4.51262121,149.83,149.82,3.39470881]
[1749234214045,4.50678032,149.83,149.82,3.39470881]
[1749234214347,4.50677699,149.83,149.82,3.39470881]
[1749234214548,18.40859858,149.83,149.82,3.39470881]
[1749234214939,18.41929858,149.83,149.74,6.14088808]
[1749234215137,13.90402159,149.78,149.75,6.6727]
[1749234215444,37.93587471,149.77,149.71,7.23252159]
[1749234215744,40.152,149.77,149.71,7.23252159]
[1749234215947,0.0494324,149.75,149.73,0.04454794]
[1749234216142,0.0494324,149.75,149.73,6.71804794]
[1749234216343,0.0494324,149.75,149.73,0.04454794]
[1749234216945,0.0494324,149.75,149.73,10.04454794]
[1749234217542,7.23252159,149.74,149.73,10.04454794]
[1749234218848,13.90582159,149.74,149.73,10.04454794]
[1749234219046,13.91252159,149.74,149.64,11.69072159]
[1749234219245,7.23252159,149.7,149.64,11.69072159]
[1749234219446,33.5,149.69,149.67,6.6761]
[1749234220155,33.54258483,149.69,149.67,6.7270019]
[1749234220645,33.54258483,149.69,149.68,6.676]
[1749234221353,33.54258483,149.69,149.68,10.0]
[1749234222748,33.54258483,149.69,149.68,16.676]
[1749234227256,33.42,149.72,149.71,6.6747]
[1749234227458,33.42,149.74,149.71,6.6747]
[1749234228044,40.13833408,149.74,149.71,6.6747]
[1749234228245,40.13833408,149.74,149.71,6.72269048]
[1749234229455,6.6738,149.73,149.71,0.04799048]
[1749234229753,33.46493408,149.74,149.71,0.04799048]
[1749234230055,40.13833408,149.74,149.71,6.72229048]
[1749234231054,6.6742,149.72,149.71,0.04799048]
[1749234231254,33.46493408,149.74,149.71,0.04799048]
[1749234231555,40.13863408,149.74,149.71,6.72239048]
[1749234231952,33.46493408,149.74,149.71,6.72239048]
[1749234232751,6.6738,149.73,149.71,6.72239048]
[1749234233156,33.46493408,149.74,149.71,6.72239048]
[1749234233457,40.13843408,149.74,149.71,6.72239048]
[1749234234357,33.46493408,149.74,149.71,0.04799048]
[1749234234748,40.13863408,149.74,149.71,6.72239048]
[1749234235257,6.6738,149.73,149.71,6.72239048]
[1749234235452,33.46493408,149.74,149.71,0.04799048]
[1749234235658,7.23252159,149.73,149.71,0.04799048]
[1749234236254,6.6742,149.72,149.71,0.04799048]
[1749234236558,33.46493408,149.74,149.71,0.04799048]
[1749234236956,0.04493408,149.74,149.73,7.23252159]
[1749234237352,0.04493408,149.74,149.73,13.90632159]
[1749234238559,0.04493408,149.74,149.73,6.6738]
[1749234239058,0.04493408,149.74,149.72,6.6741]
[1749234240454,0.04493408,149.74,149.71,0.04799048]
[1749234240658,33.42,149.73,149.71,0.04799048]
[1749234241867,33.42,149.73,149.72,6.6742]
[1749234243562,33.42,149.73,149.71,16.72249048]
[1749234243864,33.42,149.73,149.71,10.04799048]
[1749234244365,33.42,149.73,149.72,6.6742]
[1749234244870,33.42,149.73,149.71,10.04799048]
[1749234245056,40.094,149.73,149.71,16.72239048]
[1749234246065,6.6742,149.72,149.71,10.04799048]
[1749234246254,40.65252159,149.73,149.71,10.04799048]
[1749234246458,47.32652159,149.73,149.71,10.04799048]
[1749234246664,47.32652159,149.73,149.71,16.72259048]
[1749234246862,47.32652159,149.73,149.71,10.04799048]
[1749234247064,6.6742,149.72,149.71,10.04799048]
[1749234251663,33.42,149.73,149.71,10.04799048]
[1749234251867,40.65252159,149.73,149.71,10.04799048]
[1749234252373,33.42,149.73,149.71,10.04799048]
[1749234253473,40.0939,149.73,149.71,10.04799048]
[1749234253675,33.42,149.73,149.71,10.04799048]
[1749234254172,40.094,149.73,149.71,10.04799048]
[1749234254575,33.42,149.73,149.71,10.04799048]
[1749234255167,6.6742,149.72,149.71,10.04799048]
[1749234255971,13.90672159,149.72,149.71,10.04799048]
[1749234256370,6.6764,149.67,149.65,2.2336]
[1749234256677,6.6764,149.67,149.63,8.30054582]
[1749234256877,13.90862159,149.68,149.65,6.6771]
[1749234257377,13.9550315,149.68,149.65,6.71947697]
[1749234257975,6.6765,149.67,149.65,6.71947697]
[1749234258674,6.6765,149.67,149.65,16.71947697]
[1749234259285,6.6769,149.66,149.65,10.04237697]
[1749234259682,13.90942159,149.66,149.65,10.04237697]
[1749234260875,6.6785,149.63,149.6,6.6795]
[1749234261077,47.35102159,149.63,149.6,6.6795]
[1749234261780,47.35102159,149.63,149.61,6.6791]
[1749234261781,47.39738889,149.63,149.61,6.6791]
[1749234262477,47.39738889,149.63,149.61,16.6791]
[1749234262986,40.71888889,149.63,149.61,16.6791]
[1749234263988,47.39718889,149.63,149.61,10.0]
[1749234266088,40.71888889,149.63,149.61,16.6789]
[1749234266281,40.71888889,149.63,149.61,10.0]
[1749234266588,47.39758889,149.63,149.61,10.0]
[1749234268289,40.71888889,149.63,149.61,16.6791]
[1749234268591,40.71888889,149.63,149.61,10.0]
[1749234270492,47.39738889,149.63,149.61,10.0]
[1749234270793,40.71888889,149.63,149.61,10.0]
[1749234271194,6.6787,149.62,149.61,10.0]
[1749234271894,13.91122159,149.62,149.61,10.0]
[1749234272192,7.23252159,149.62,149.61,10.0]
[1749234272389,33.4863673,149.63,149.61,10.0]
[1749234272693,40.1646673,149.63,149.61,10.0]
[1749234275994,33.4863673,149.63,149.61,16.6791]
[1749234276698,40.1646673,149.63,149.61,10.0]
[1749234277494,13.91122159,149.62,149.61,10.0]
[1749234281803,6.6787,149.62,149.61,10.0]
[1749234282000,13.91122159,149.62,149.61,10.0]
[1749234282205,7.23252159,149.62,149.61,10.0]
[1749234283503,13.91122159,149.62,149.61,10.0]
[1749234284603,40.1648673,149.63,149.61,10.0]
[1749234284804,47.39738889,149.63,149.61,10.0]
[1749234285005,40.71888889,149.63,149.61,10.0]
[1749234285210,6.6787,149.62,149.61,10.0]
[1749234285797,47.39728889,149.63,149.61,10.0]
[1749234286106,33.4863673,149.63,149.61,10.0]
[1749234286807,6.6787,149.62,149.61,10.0]
[1749234289605,13.91122159,149.62,149.61,10.0]
[1749234292909,33.4863673,149.63,149.61,10.0]
[1749234293107,33.4663673,149.63,149.61,10.0]
[1749234294205,40.1446673,149.63,149.61,10.0]
[1749234296414,33.4663673,149.63,149.61,10.0]
[1749234296914,33.4663673,149.63,149.62,6.6787]
[1749234297115,33.4663673,149.63,149.61,10.0]
[1749234297612,40.1447673,149.63,149.61,16.6789]
[1749234299719,6.6787,149.62,149.61,10.0]
[1749234299917,11.14088188,149.62,149.61,10.0]
[1749234300118,6.6787,149.62,149.61,10.0]
[1749234300418,11.1408787,149.62,149.61,10.0]
[1749234301320,4.46984808,149.62,149.61,10.0]
[1749234301507,40.1448673,149.63,149.61,10.0]
[1749234301706,4.46982096,149.62,149.61,10.0]
[1749234301914,4.46982003,149.62,149.61,10.0]
[1749234302117,40.1448673,149.63,149.61,10.0]
[1749234302315,4.46982002,149.62,149.61,10.0]
[1749234303925,11.14852002,149.62,149.61,10.0]
[1749234304523,18.38104161,149.62,149.61,10.0]
[1749234305021,6.6791,149.61,149.6,0.0440493]
[1749234305322,33.4663673,149.63,149.6,0.0440493]
[1749234305823,4.47782477,149.62,149.6,0.0440493]
[1749234306015,4.47782477,149.61,149.6,6.7233493]
[1749234306724,4.47804726,149.61,149.6,6.7233493]
[1749234307024,4.47804849,149.61,149.6,16.7233493]
[1749234307228,6.6787,149.62,149.6,16.7233493]
[1749234307418,4.47807458,149.61,149.6,16.7233493]
[1749234307621,6.6787,149.62,149.6,16.7233493]
[1749234307920,4.4780747,149.61,149.6,16.7233493]
[1749234308116,4.4780747,149.61,149.6,22.9282202]
[1749234308324,4.46178586,149.61,149.6,16.7233493]
[1749234308619,4.46178583,149.61,149.6,16.7233493]
[1749234308823,4.4617858,149.61,149.6,16.7233493]
[1749234309020,33.4663673,149.63,149.6,16.7233493]
[1749234309219,4.46178358,149.62,149.6,10.0440493]
[1749234309523,4.46178358,149.61,149.6,10.0440493]
[1749234309717,4.46178358,149.61,149.55,6.2048709]
[1749234309919,7.23252159,149.57,149.54,6.2048709]
[1749234310221,7.23252159,149.55,149.52,6.2048709]
[1749234310425,6.6827,149.53,149.51,6.2048709]
[1749234310621,6.6827,149.53,149.5,8.4437709]
[1749234310925,4.46018442,149.52,149.5,6.2532158]
[1749234311220,33.42,149.52,149.5,6.2532158]
[1749234311418,33.42,149.52,149.5,12.9370158]
[1749234311625,33.42,149.52,149.5,0.0483449]
[1749234311830,33.42,149.52,149.5,10.0483449]
[1749234312127,33.42,149.52,149.5,16.7323449]
[1749234312824,33.42,149.52,149.5,10.0483449]
[1749234313419,33.42,149.52,149.5,16.7321449]
[1749234315622,33.42,149.52,149.51,6.6836]
[1749234315924,33.42,149.52,149.5,10.0483449]
[1749234316121,40.1034,149.52,149.5,10.0483449]
[1749234317925,33.42,149.52,149.5,16.7322449]
[1749234320029,33.42,149.52,149.51,6.6836]
[1749234322326,33.42,149.52,149.5,16.7322449]
[1749234325326,33.42,149.52,149.51,6.6836]
[1749234326229,33.42,149.52,149.5,10.0483449]
[1749234327329,40.1031,149.52,149.5,10.0483449]
[1749234329230,6.6836,149.51,149.5,10.0483449]
[1749234330130,40.1034,149.52,149.5,10.0483449]
[1749234330826,33.42,149.52,149.5,16.7323449]
[1749234331128,33.42,149.52,149.5,10.0483449]
[1749234331435,40.1034,149.52,149.5,10.0483449]
[1749234336233,6.6836,149.51,149.5,10.0483449]
[1749234337334,40.1033,149.52,149.5,10.0483449]
[1749234337634,33.44,149.51,149.5,10.0483449]
[1749234338934,40.1236,149.51,149.5,10.0483449]
[1749234340433,47.35612159,149.51,149.5,10.0483449]
[1749234344838,6.6858,149.46,149.43,6.6869]
[1749234345432,6.6864,149.45,149.42,6.6874]
[1749234345632,7.23252159,149.46,149.41,2.1207]
[1749234345832,0.04275916,149.45,149.42,0.04812027]
[1749234346536,6.6869,149.44,149.42,0.04812027]
[1749234346737,33.44,149.43,149.42,0.04812027]
[1749234346937,33.44,149.43,149.42,10.04812027]
[1749234349240,33.44,149.43,149.42,16.73572027]
[1749234349941,33.44,149.43,149.42,10.04812027]
[1749234351747,40.1271,149.43,149.42,10.04812027]
[1749234354845,33.44,149.43,149.36,2.172]
[1749234355146,7.23252159,149.4,149.35,2.2696]
[1749234355350,33.44,149.39,149.35,2.2696]
[1749234355739,33.44,149.39,149.36,6.6901]
[1749234356048,0.05101229,149.38,149.36,0.04685808]
[1749234357053,0.05101229,149.38,149.36,10.04685808]
[1749234357244,0.05101229,149.38,149.37,6.6898]
[1749234357949,29.9448,149.39,149.38,6.6894]
[1749234358251,33.44,149.42,149.38,7.23252159]
[1749234358452,6.6879,149.42,149.39,6.6887]
[1749234358953,6.73179789,149.42,149.39,0.04335408]
[1749234359346,6.73179789,149.42,149.39,6.73205408]
[1749234360353,0.04389789,149.42,149.4,7.23252159]
[1749234360849,33.44,149.44,149.4,7.23252159]
[1749234361056,33.44,149.47,149.42,7.23252159]
[1749234361446,6.686,149.46,149.42,7.23252159]
[1749234361857,0.05057753,149.45,149.43,6.73518027]
[1749234362253,0.05057753,149.45,149.43,0.04828027]
[1749234362450,0.05057753,149.45,149.44,6.6867]
[1749234362956,0.05057753,149.45,149.43,6.73518027]
[1749234363847,6.73707753,149.45,149.43,0.04828027]
[1749234364358,6.73707753,149.45,149.43,6.73528027]
[1749234364547,6.73707753,149.45,149.43,0.04828027]
[1749234365549,14.51562071,149.45,149.36,16.20721725]
[1749234365857,7.23252159,149.37,149.36,10.0]
[1749234366052,47.36232159,149.37,149.36,10.0]
[1749234367054,0.04310365,149.38,149.36,10.0]
[1749234367247,33.48310365,149.38,149.36,10.0]
[1749234368256,7.23252159,149.37,149.36,10.0]
[1749234368855,13.92232159,149.37,149.36,10.0]
[1749234369262,7.23252159,149.37,149.36,10.0]
[1749234370161,13.92232159,149.37,149.36,10.0]
[1749234371457,7.23252159,149.37,149.36,10.0]
[1749234371762,33.48310365,149.38,149.36,10.0]
[1749234372464,6.6898,149.37,149.36,10.0]
[1749234372666,40.71562524,149.38,149.36,10.0]
[1749234373564,47.40522524,149.38,149.36,10.0]
[1749234373865,40.71562524,149.38,149.36,10.0]
[1749234374964,6.6898,149.37,149.36,10.0]
[1749234375666,47.94814683,149.38,149.29,35.613]
[1749234375860,7.23252159,149.33,149.29,2.153]
[1749234376262,6.693,149.3,149.28,2.2078]
[1749234376762,0.05016935,149.3,149.28,0.04758832]
[1749234377766,0.05016935,149.3,149.28,10.04758832]
[1749234378263,0.05016935,149.3,149.29,6.6934]
[1749234378467,7.23252159,149.33,149.28,10.04758832]
[1749234379265,7.23252159,149.33,149.31,6.6923]
[1749234379466,7.28268927,149.33,149.31,6.73596715]
[1749234379770,7.28268927,149.33,149.31,0.04366715]
[1749234379974,7.28268927,149.33,149.32,6.6921]
[1749234380159,0.05016768,149.33,149.32,6.6921]
[1749234380968,33.54,149.39,149.31,14.50871033]
[1749234381272,33.54,149.39,149.35,7.23252159]
[1749234381457,33.54,149.39,149.38,6.6894]
[1749234382065,0.05089831,149.4,149.39,6.6889]
[1749234382366,0.05089831,149.4,149.39,13.92142159]
[1749234384762,0.05089831,149.4,149.39,6.6889]
[1749234388276,0.05089831,149.4,149.39,13.92142159]
[1749234390678,0.05089831,149.4,149.39,6.6889]
[1749234390877,0.05089831,149.4,149.38,6.6893]
[1749234392175,0.05089831,149.4,149.38,16.6893]
[1749234392772,0.05089831,149.4,149.39,6.6889]
[1749234393173,0.05089831,149.4,149.38,10.0]
[1749234393374,0.05089831,149.4,149.38,16.6892]
[1749234394079,6.73959831,149.4,149.38,10.0]
[1749234394281,0.05089831,149.4,149.38,10.0]
[1749234394779,13.92142159,149.39,149.38,10.0]
[1749234394974,7.23252159,149.39,149.32,8.50916682]
[1749234395273,2.1595,149.44,149.3,84.66491063]
[1749234395274,7.23252159,149.37,149.3,84.66491063]
[1749234395479,33.54,149.36,149.3,84.66491063]
[1749234395983,33.54,149.36,149.32,6.74143336]
[1749234395984,0.046897,149.34,149.32,6.74143336]
[1749234396775,0.046897,149.34,149.32,16.74143336]
[1749234397079,0.046897,149.34,149.32,10.04943336]
[1749234397279,6.738397,149.34,149.32,10.04943336]
[1749234397875,6.6916,149.33,149.32,10.04943336]
[1749234398272,0.046897,149.34,149.32,10.04943336]
[1749234400078,6.738297,149.34,149.32,10.04943336]
[1749234400578,0.046897,149.34,149.32,10.04943336]
[1749234401274,0.046897,149.34,149.32,16.74133336]
[1749234401475,0.046897,149.34,149.32,10.04943336]
[1749234401974,6.738097,149.34,149.32,10.04943336]
[1749234402281,0.046897,149.34,149.32,10.04943336]
[1749234402581,6.738297,149.34,149.32,10.04943336]
[1749234403278,0.046897,149.34,149.32,16.74133336]
[1749234404080,0.046897,149.34,149.32,10.04943336]